[Event "44th Chess Olympiad Open 2022"]
[Site "Chennai"]
[Date "2022.07.31"]
[Round "3.74"]
[White "Sihlongonyane, Sikhanyiso"]
[Black "Estur, Gavino Aguilar"]
[Result "1-0"]
[WhiteElo "1658"]
[BlackElo "1598"]
[Annotator "NA RC"]
[PlyCount "99"]
[EventDate "2022.??.??"]
[TimeControl "60"]

1. e4 {[%emt 0:02:21]} e5 {[%emt 0:00:23]} 2. Nf3 {[%emt 0:00:03]} Nc6 {
[%emt 0:00:23]} 3. Bb5 {[%emt 0:00:04]} d6 {[%emt 0:01:13]} 4. c3 {[%emt 0:00:
00]} Bd7 {[%emt 0:01:25]} 5. Ba4 {[%emt 0:00:03]} Nf6 {[%emt 0:01:02]} 6. Bc2 {
[%emt 0:00:14]} Bg4 {[%emt 0:02:52]} 7. h3 {[%emt 0:00:38]} Bh5 {[%emt 0:00:40]
} 8. O-O {[%emt 0:00:16]} Be7 {[%emt 0:04:16]} 9. d3 {[%emt 0:00:05]} O-O {
[%emt 0:02:46]} 10. Re1 {[%emt 0:01:26]} Qd7 {[%emt 0:02:16]} 11. Nbd2 {
[%emt 0:01:40]} a6 {[%emt 0:00:48]} 12. Nf1 {[%emt 0:00:06]} h6 {[%emt 0:04:05]
} 13. Ng3 {[%emt 0:00:10]} Bg6 {[%emt 0:01:13]} 14. Nh4 {[%emt 0:01:11]} Bh7 {
[%emt 0:05:04]} 15. Nhf5 {[%emt 0:00:18]} Bg6 {[%emt 0:03:24]} 16. Be3 {
[%emt 0:01:06]} Kh7 {[%emt 0:01:38]} 17. Qc1 {[%emt 0:01:41]} Ng8 {[%emt 0:00:
00]} 18. h4 {[%emt 0:05:02]} Bxf5 {[%emt 0:03:34]} 19. Nxf5 {[%emt 0:00:07]}
Bf6 {[%emt 0:00:19]} 20. h5 {[%emt 0:14:31]} Nce7 {[%emt 0:01:46]} 21. d4 {
[%emt 0:06:52]} Nxf5 {[%emt 0:00:34]} 22. exf5 {[%emt 0:00:03]} Kh8 {[%emt 0:
00:00]} 23. g4 {[%emt 0:01:42]} Qe7 {[%emt 0:07:43]} 24. Kg2 {[%emt 0:09:26]}
Qd7 {[%emt 0:07:54]} 25. Qd2 {[%emt 0:08:51]} Rad8 {[%emt 0:09:38]} 26. d5 {
[%emt 0:04:18]} Rfe8 {[%emt 0:08:35]} 27. Rg1 {[%emt 0:12:53]} Qe7 {[%emt 0:00:
00]} 28. Kh3 {[%emt 0:02:44]} Bg5 {[%emt 0:00:59]} 29. Bxg5 {[%emt 0:01:52]}
Qxg5 {[%emt 0:00:41]} 30. Qxg5 {[%emt 0:00:16]} hxg5 {[%emt 0:00:08]} 31. Be4 {
[%emt 0:00:25]} f6 {[%emt 0:00:45]} 32. b4 {[%emt 0:04:26]} Ne7 {[%emt 0:02:23]
} 33. c4 {[%emt 0:01:11]} b6 {[%emt 0:01:04]} 34. Rab1 {[%emt 0:03:43]} Rb8 {
[%emt 0:04:08]} 35. Rb3 {[%emt 0:02:12]} Red8 {[%emt 0:04:07]} 36. a4 {[%emt 0:
00:00]} Kg8 {[%emt 0:02:02]} 37. Rd1 {[%emt 0:01:40]} Kf7 {[%emt 0:01:00]} 38.
f3 {[%emt 0:00:09]} Ke8 {[%emt 0:02:02]} 39. Kg3 {[%emt 0:00:27]} Ng8 {[%emt 0:
00:00]} 40. Ra1 {[%emt 0:04:13]} Kd7 {[%emt 0:01:19]} 41. a5 {[%emt 0:32:49]}
b5 {[%emt 0:33:55]} 42. cxb5 {[%emt 0:05:21]} axb5 {[%emt 0:01:48]} 43. a6 {
[%emt 0:00:34]} Ra8 {[%emt 0:00:00]} 44. Bd3 {[%emt 0:00:00]} Rdb8 {[%emt 0:00:
00]} 45. Ra5 {[%emt 0:00:00]} c6 {[%emt 0:00:00]} 46. dxc6+ {[%emt 0:00:00]}
Kxc6 {[%emt 0:00:00]} 47. Rc3+ {[%emt 0:00:00]} Kd7 {[%emt 0:00:00]} 48. Bxb5+
{[%emt 0:00:00]} Kd8 {[%emt 0:00:00]} 49. a7 {[%emt 0:00:00]} Rc8 {[%emt 0:00:
00]} 50. Rxc8+ {[%emt 0:00:00]} 1-0

[Event "44th Chess Olympiad Open 2022"]
[Site "Chennai"]
[Date "2022.07.31"]
[Round "3.75"]
[White "McCoy, Tom"]
[Black "Napoleao, Lourenco"]
[Result "1-0"]
[WhiteElo "1812"]
[BlackElo "1778"]
[Annotator "NA"]
[PlyCount "99"]
[EventDate "2022.??.??"]
[TimeControl "60"]

1. e4 {[%emt 0:00:04]} c5 {[%emt 0:00:18]} 2. Nf3 {[%emt 0:00:10]} d6 {[%emt 0:
00:00]} 3. Nc3 {[%emt 0:00:28]} Bg4 {[%emt 0:10:54]} 4. Be2 {[%emt 0:02:11]}
Nc6 {[%emt 0:00:24]} 5. O-O {[%emt 0:02:31]} e6 {[%emt 0:01:25]} 6. d3 {
[%emt 0:01:46]} Be7 {[%emt 0:00:31]} 7. h3 {[%emt 0:02:58]} Bh5 {[%emt 0:00:21]
} 8. b3 {[%emt 0:04:42]} Bf6 {[%emt 0:01:53]} 9. Bb2 {[%emt 0:00:29]} b5 {
[%emt 0:04:09]} 10. Qc1 {[%emt 0:03:07]} Nd4 {[%emt 0:05:25]} 11. Nxd4 {
[%emt 0:09:42]} cxd4 {[%emt 0:00:21]} 12. Bxh5 {[%emt 0:00:10]} dxc3 {[%emt 0:
00:00]} 13. Ba3 {[%emt 0:00:21]} a5 {[%emt 0:08:36]} 14. Qe3 {[%emt 0:04:14]}
Ne7 {[%emt 0:02:25]} 15. Rad1 {[%emt 0:06:19]} b4 {[%emt 0:03:20]} 16. Bc1 {
[%emt 0:01:13]} a4 {[%emt 0:00:26]} 17. d4 {[%emt 0:01:11]} axb3 {[%emt 0:00:
00]} 18. axb3 {[%emt 0:00:20]} O-O {[%emt 0:05:04]} 19. f4 {[%emt 0:07:02]} g6
{[%emt 0:05:33]} 20. Be2 {[%emt 0:04:39]} d5 {[%emt 0:01:41]} 21. e5 {[%emt 0:
00:00]} Nf5 {[%emt 0:03:38]} 22. Qf3 {[%emt 0:02:03]} Bg7 {[%emt 0:03:27]} 23.
g4 {[%emt 0:04:41]} Ne7 {[%emt 0:01:09]} 24. Bd3 {[%emt 0:02:54]} f6 {[%emt 0:
00:00]} 25. Qg3 {[%emt 0:03:00]} Qb6 {[%emt 0:02:33]} 26. Be3 {[%emt 0:00:49]}
Nc6 {[%emt 0:01:49]} 27. f5 {[%emt 0:06:14]} fxe5 {[%emt 0:05:29]} 28. dxe5 {
[%emt 0:04:51]} d4 {[%emt 0:02:51]} 29. Bf4 {[%emt 0:00:52]} gxf5 {[%emt 0:00:
00]} 30. gxf5 {[%emt 0:00:16]} exf5 {[%emt 0:00:28]} 31. Rde1 {[%emt 0:08:06]}
Ne7 {[%emt 0:03:37]} 32. Rf2 {[%emt 0:02:35]} Kh8 {[%emt 0:03:53]} 33. Rg2 {
[%emt 0:01:11]} Ng6 {[%emt 0:03:06]} 34. h4 {[%emt 0:02:37]} Rg8 {[%emt 0:00:
00]} 35. e6 {[%emt 0:04:12]} Bf6 {[%emt 0:00:45]} 36. Bg5 {[%emt 0:03:02]} Bxg5
{[%emt 0:01:25]} 37. Qxg5 {[%emt 0:00:18]} Raf8 {[%emt 0:01:02]} 38. e7 {
[%emt 0:01:02]} Re8 {[%emt 0:01:06]} 39. Qxf5 {[%emt 0:00:35]} Qd6 {[%emt 0:00:
00]} 40. h5 {[%emt 0:00:27]} Rxe7 {[%emt 0:01:03]} 41. Rxe7 {[%emt 0:30:30]}
Qxe7 {[%emt 0:06:06]} 42. hxg6 {[%emt 0:00:00]} Qe1+ {[%emt 0:04:12]} 43. Kh2 {
[%emt 0:00:00]} Qh4+ {[%emt 0:03:54]} 44. Qh3 {[%emt 0:00:00]} Qf4+ {[%emt 0:
00:00]} 45. Qg3 {[%emt 0:00:00]} Qh6+ {[%emt 0:00:50]} 46. Kg1 {[%emt 0:00:00]}
Qc1+ {[%emt 0:01:19]} 47. Kh2 {[%emt 0:00:00]} Qh6+ {[%emt 0:00:10]} 48. Qh3 {
[%emt 0:00:00]} Qf4+ {[%emt 0:00:59]} 49. Kh1 {[%emt 0:00:00]} Qc7 {[%emt 0:00:
00]} 50. Qxh7+ {[%emt 0:00:00]} 1-0

[Event "44th Chess Olympiad Open 2022"]
[Site "Chennai"]
[Date "2022.07.31"]
[Round "3.75"]
[White "Jamal, Hamid Harmon Gulamo"]
[Black "Jones, Rupert"]
[Result "1-0"]
[WhiteElo "1617"]
[BlackElo "1766"]
[Annotator "NA RC"]
[PlyCount "159"]
[EventDate "2022.??.??"]
[TimeControl "60"]

1. e4 {[%emt 0:00:06]} c5 {[%emt 0:00:04]} 2. Nf3 {[%emt 0:00:19]} e6 {[%emt 0:
00:00]} 3. d3 {[%emt 0:00:06]} Nc6 {[%emt 0:02:06]} 4. g3 {[%emt 0:00:15]} g6 {
[%emt 0:00:22]} 5. Bg2 {[%emt 0:00:18]} Bg7 {[%emt 0:00:08]} 6. O-O {[%emt 0:
00:00]} Nge7 {[%emt 0:01:46]} 7. c3 {[%emt 0:01:06]} O-O {[%emt 0:00:21]} 8.
Re1 {[%emt 0:01:43]} d6 {[%emt 0:07:41]} 9. Be3 {[%emt 0:03:39]} b5 {[%emt 0:
00:00]} 10. Qd2 {[%emt 0:04:08]} Rb8 {[%emt 0:03:55]} 11. Bh6 {[%emt 0:01:05]}
b4 {[%emt 0:08:02]} 12. d4 {[%emt 0:06:28]} cxd4 {[%emt 0:06:49]} 13. cxd4 {
[%emt 0:00:38]} d5 {[%emt 0:05:25]} 14. Bxg7 {[%emt 0:04:51]} Kxg7 {[%emt 0:00:
00]} 15. e5 {[%emt 0:00:12]} Nf5 {[%emt 0:01:48]} 16. Bh3 {[%emt 0:03:29]} h6 {
[%emt 0:04:09]} 17. Bxf5 {[%emt 0:06:21]} exf5 {[%emt 0:00:33]} 18. Qd3 {
[%emt 0:03:44]} Qb6 {[%emt 0:06:06]} 19. Nbd2 {[%emt 0:00:50]} Na5 {[%emt 0:00:
00]} 20. Rac1 {[%emt 0:02:31]} Be6 {[%emt 0:00:10]} 21. b3 {[%emt 0:03:17]}
Rfc8 {[%emt 0:01:41]} 22. Nf1 {[%emt 0:01:34]} Rc6 {[%emt 0:00:33]} 23. Rxc6 {
[%emt 0:00:42]} Qxc6 {[%emt 0:00:59]} 24. Qd2 {[%emt 0:00:47]} Qb6 {[%emt 0:00:
00]} 25. Ne3 {[%emt 0:01:41]} Rc8 {[%emt 0:01:43]} 26. h4 {[%emt 0:04:51]} Rc3
{[%emt 0:03:29]} 27. Qe2 {[%emt 0:05:05]} Nb7 {[%emt 0:07:08]} 28. Nd1 {
[%emt 0:00:59]} Rc7 {[%emt 0:04:31]} 29. h5 {[%emt 0:01:33]} g5 {[%emt 0:02:50]
} 30. Qd3 {[%emt 0:00:53]} Qc6 {[%emt 0:03:38]} 31. Ne3 {[%emt 0:02:55]} Qd7 {
[%emt 0:00:28]} 32. Qa6 {[%emt 0:01:57]} Nd8 {[%emt 0:01:03]} 33. Rd1 {[%emt 0:
00:00]} Rc3 {[%emt 0:01:35]} 34. Ne1 {[%emt 0:04:58]} f4 {[%emt 0:03:51]} 35.
gxf4 {[%emt 0:00:38]} gxf4 {[%emt 0:00:01]} 36. N3g2 {[%emt 0:00:27]} Bg4 {
[%emt 0:03:13]} 37. Qf6+ {[%emt 0:00:15]} Kh7 {[%emt 0:00:22]} 38. Ra1 {
[%emt 0:02:52]} Bxh5 {[%emt 0:02:35]} 39. Nxf4 {[%emt 0:01:47]} Qg4+ {[%emt 0:
00:00]} 40. Neg2 {[%emt 0:00:36]} Ne6 {[%emt 0:01:05]} 41. Nxe6 {[%emt 0:42:01]
} Qxe6 {[%emt 0:03:17]} 42. Qxe6 {[%emt 0:00:00]} fxe6 {[%emt 0:00:02]} 43. a3
{[%emt 0:00:00]} bxa3 {[%emt 0:05:14]} 44. Rxa3 {[%emt 0:00:00]} Rc7 {[%emt 0:
00:00]} 45. Nf4 {[%emt 0:00:00]} Bg4 {[%emt 0:01:46]} 46. Ra6 {[%emt 0:00:00]}
Re7 {[%emt 0:00:20]} 47. Kg2 {[%emt 0:00:00]} Kg7 {[%emt 0:02:05]} 48. f3 {
[%emt 0:00:00]} Bf5 {[%emt 0:00:15]} 49. Kf2 {[%emt 0:00:00]} Kf7 {[%emt 0:00:
00]} 50. Nxd5 {[%emt 0:00:00]} exd5 {[%emt 0:06:14]} 51. Rf6+ {[%emt 0:00:00]}
Ke8 {[%emt 0:06:19]} 52. Rxf5 {[%emt 0:00:00]} Rb7 {[%emt 0:01:13]} 53. e6 {
[%emt 0:00:00]} Rxb3 {[%emt 0:00:13]} 54. Rxd5 {[%emt 0:00:00]} Ke7 {[%emt 0:
00:00]} 55. Rd7+ {[%emt 0:00:00]} Kxe6 {[%emt 0:00:13]} 56. Rxa7 {[%emt 0:00:
00]} Kd5 {[%emt 0:02:34]} 57. Rd7+ {[%emt 0:00:00]} Ke6 {[%emt 0:00:09]} 58.
Rh7 {[%emt 0:00:00]} Kd5 {[%emt 0:00:18]} 59. Rxh6 {[%emt 0:00:00]} Kxd4 {
[%emt 0:00:12]} 60. Re6 {[%emt 0:00:00]} Kd5 {[%emt 0:01:00]} 61. Re8 {[%emt 0:
00:00]} Rb6 {[%emt 0:00:52]} 62. Ke3 {[%emt 0:00:00]} Rf6 {[%emt 0:00:29]} 63.
Ra8 {[%emt 0:00:00]} Rf5 {[%emt 0:03:35]} 64. Ra6 {[%emt 0:00:00]} Rf8 {
[%emt 0:00:27]} 65. f4 {[%emt 0:03:32]} Rf7 {[%emt 0:00:58]} 66. Kf3 {[%emt 0:
00:00]} Rf8 {[%emt 0:00:15]} 67. Kg4 {[%emt 0:00:18]} Rg8+ {[%emt 0:00:18]} 68.
Kf5 {[%emt 0:01:02]} Rg1 {[%emt 0:00:32]} 69. Kf6 {[%emt 0:00:00]} Rh1 {
[%emt 0:00:51]} 70. Ra8 {[%emt 0:00:34]} Rh6+ {[%emt 0:00:07]} 71. Kg5 {
[%emt 0:00:31]} Rb6 {[%emt 0:01:00]} 72. Re8 {[%emt 0:01:01]} Rb1 {[%emt 0:00:
00]} 73. f5 {[%emt 0:00:18]} Rg1+ {[%emt 0:00:08]} 74. Kf6 {[%emt 0:00:07]} Rg2
{[%emt 0:00:12]} 75. Kf7 {[%emt 0:00:37]} Kd6 {[%emt 0:00:39]} 76. f6 {[%emt 0:
00:00]} Rg3 {[%emt 0:01:53]} 77. Kf8 {[%emt 0:00:20]} Rg1 {[%emt 0:01:22]} 78.
f7 {[%emt 0:00:07]} Kd7 {[%emt 0:00:33]} 79. Re4 {[%emt 0:00:46]} Rg2 {[%emt 0:
00:00]} 80. Rd4+ {[%emt 0:00:17]} 1-0

[Event "44th Chess Olympiad Open 2022"]
[Site "Chennai"]
[Date "2022.07.31"]
[Round "3.76"]
[White "Koumba, Mounguen Jose Evrar"]
[Black "Al-Hajiri, Bader"]
[Result "1-0"]
[WhiteElo "1942"]
[BlackElo "2011"]
[Annotator "NA RC"]
[PlyCount "87"]
[EventDate "2022.??.??"]
[TimeControl "60"]

1. e4 {[%emt 0:00:26]} e5 {[%emt 0:00:19]} 2. Nf3 {[%emt 0:00:09]} Nc6 {
[%emt 0:00:24]} 3. Bb5 {[%emt 0:00:13]} a6 {[%emt 0:00:24]} 4. Ba4 {[%emt 0:00:
00]} Nf6 {[%emt 0:00:09]} 5. Qe2 {[%emt 0:00:09]} Bc5 {[%emt 0:03:05]} 6. c3 {
[%emt 0:01:35]} b5 {[%emt 0:01:54]} 7. Bb3 {[%emt 0:01:17]} d6 {[%emt 0:00:15]}
8. d3 {[%emt 0:03:22]} Bg4 {[%emt 0:07:28]} 9. h3 {[%emt 0:00:32]} Bh5 {
[%emt 0:00:13]} 10. Bg5 {[%emt 0:00:39]} Qe7 {[%emt 0:02:25]} 11. g4 {[%emt 0:
00:00]} Bg6 {[%emt 0:02:49]} 12. Bd5 {[%emt 0:00:11]} Nxd5 {[%emt 0:19:31]} 13.
Bxe7 {[%emt 0:03:51]} Nf4 {[%emt 0:00:13]} 14. Qc2 {[%emt 0:00:38]} Kxe7 {
[%emt 0:03:24]} 15. Nbd2 {[%emt 0:02:04]} Rhd8 {[%emt 0:04:48]} 16. Nb3 {
[%emt 0:05:42]} Bb6 {[%emt 0:00:37]} 17. O-O-O {[%emt 0:00:39]} a5 {[%emt 0:00:
00]} 18. Kb1 {[%emt 0:01:05]} d5 {[%emt 0:00:36]} 19. Nh4 {[%emt 0:00:19]} dxe4
{[%emt 0:02:18]} 20. Nxg6+ {[%emt 0:00:22]} hxg6 {[%emt 0:00:07]} 21. dxe4 {
[%emt 0:00:12]} Rxd1+ {[%emt 0:00:54]} 22. Rxd1 {[%emt 0:03:02]} a4 {[%emt 0:
00:00]} 23. Nc1 {[%emt 0:00:16]} b4 {[%emt 0:00:46]} 24. Nd3 {[%emt 0:02:22]}
Nxh3 {[%emt 0:02:07]} 25. Nxb4 {[%emt 0:00:36]} Nxb4 {[%emt 0:00:14]} 26. cxb4
{[%emt 0:00:12]} Nxf2 {[%emt 0:00:04]} 27. Rd2 {[%emt 0:01:38]} Rh8 {[%emt 0:
00:00]} 28. Qxa4 {[%emt 0:02:42]} Rh1+ {[%emt 0:02:27]} 29. Kc2 {[%emt 0:00:20]
} Bd4 {[%emt 0:00:45]} 30. Qc6 {[%emt 0:01:59]} Nxg4 {[%emt 0:00:47]} 31. Qxc7+
{[%emt 0:00:22]} Kf6 {[%emt 0:00:07]} 32. b5 {[%emt 0:01:45]} Rh3 {[%emt 0:00:
00]} 33. Rd3 {[%emt 0:00:52]} Rh2+ {[%emt 0:00:09]} 34. Kb3 {[%emt 0:00:26]}
Kg5 {[%emt 0:03:30]} 35. a4 {[%emt 0:03:18]} Rxb2+ {[%emt 0:02:47]} 36. Ka3 {
[%emt 0:00:07]} Rb1 {[%emt 0:00:10]} 37. Rb3 {[%emt 0:01:43]} Ra1+ {[%emt 0:00:
00]} 38. Kb4 {[%emt 0:00:10]} Re1 {[%emt 0:04:00]} 39. b6 {[%emt 0:04:31]} Rxe4
{[%emt 0:00:28]} 40. Kb5 {[%emt 0:00:04]} Rf4 {[%emt 0:03:34]} 41. b7 {[%emt 0:
00:00]} Rf5 {[%emt 0:30:46]} 42. b8=Q {[%emt 0:00:13]} e4+ {[%emt 0:00:13]} 43.
Kc4 {[%emt 0:00:06]} Bf6 {[%emt 0:01:10]} 44. Rg3 {[%emt 0:00:40]} 1-0

[Event "44th Chess Olympiad Open 2022"]
[Site "Chennai"]
[Date "2022.07.31"]
[Round "3.76"]
[White "Hussain, Hashem"]
[Black "Bongo Akanga Ndjila, Barthelemy"]
[Result "0-1"]
[WhiteElo "1757"]
[BlackElo "1803"]
[Annotator "NA RC"]
[PlyCount "138"]
[EventDate "2022.??.??"]
[TimeControl "60"]

1. e4 {[%emt 0:00:04]} d6 {[%emt 0:01:17]} 2. d4 {[%emt 0:00:24]} Nf6 {[%emt 0:
00:00]} 3. Nc3 {[%emt 0:03:24]} c5 {[%emt 0:03:43]} 4. dxc5 {[%emt 0:02:29]}
Qa5 {[%emt 0:00:02]} 5. Bd2 {[%emt 0:06:25]} Qxc5 {[%emt 0:00:48]} 6. Bd3 {
[%emt 0:02:00]} a6 {[%emt 0:00:55]} 7. Nge2 {[%emt 0:04:14]} g6 {[%emt 0:07:04]
} 8. O-O {[%emt 0:03:17]} Bg7 {[%emt 0:03:37]} 9. Be3 {[%emt 0:05:05]} Qa5 {
[%emt 0:00:21]} 10. Nf4 {[%emt 0:12:21]} Ng4 {[%emt 0:14:07]} 11. Bd2 {[%emt 0:
00:00]} O-O {[%emt 0:00:24]} 12. Nfd5 {[%emt 0:08:18]} Qd8 {[%emt 0:00:51]} 13.
Na4 {[%emt 0:04:48]} Nc6 {[%emt 0:02:03]} 14. Nab6 {[%emt 0:04:04]} Rb8 {
[%emt 0:00:10]} 15. Nxc8 {[%emt 0:01:41]} Qxc8 {[%emt 0:00:11]} 16. c3 {
[%emt 0:00:30]} Nge5 {[%emt 0:00:35]} 17. Bc2 {[%emt 0:00:20]} Nc4 {[%emt 0:00:
00]} 18. Bc1 {[%emt 0:02:14]} b5 {[%emt 0:02:07]} 19. a4 {[%emt 0:03:43]} Nb6 {
[%emt 0:06:29]} 20. axb5 {[%emt 0:00:41]} axb5 {[%emt 0:00:10]} 21. Nxb6 {
[%emt 0:01:08]} Rxb6 {[%emt 0:00:13]} 22. Be3 {[%emt 0:00:10]} Rb8 {[%emt 0:00:
00]} 23. Qd5 {[%emt 0:08:26]} b4 {[%emt 0:00:39]} 24. Ba4 {[%emt 0:01:18]} Ne5
{[%emt 0:00:13]} 25. Bd4 {[%emt 0:02:59]} bxc3 {[%emt 0:03:00]} 26. Bxc3 {
[%emt 0:00:39]} Qc4 {[%emt 0:00:39]} 27. Rfd1 {[%emt 0:05:11]} Rfc8 {[%emt 0:
00:00]} 28. f4 {[%emt 0:01:52]} Ng4 {[%emt 0:03:50]} 29. Bxg7 {[%emt 0:00:25]}
Kxg7 {[%emt 0:00:13]} 30. b3 {[%emt 0:00:38]} Qe2 {[%emt 0:12:43]} 31. Qd4+ {
[%emt 0:01:09]} e5 {[%emt 0:00:31]} 32. fxe5 {[%emt 0:00:52]} dxe5 {[%emt 0:00:
00]} 33. Qd2 {[%emt 0:00:21]} Qxe4 {[%emt 0:00:44]} 34. Re1 {[%emt 0:00:58]}
Qb7 {[%emt 0:03:42]} 35. h3 {[%emt 0:02:40]} Qb6+ {[%emt 0:04:00]} 36. Kh1 {
[%emt 0:00:07]} Nf2+ {[%emt 0:00:11]} 37. Kh2 {[%emt 0:00:07]} e4 {[%emt 0:00:
00]} 38. Ra2 {[%emt 0:01:24]} Nd3 {[%emt 0:04:32]} 39. Rxe4 {[%emt 0:01:01]}
Nb4 {[%emt 0:06:37]} 40. Ra1 {[%emt 0:03:07]} Rd8 {[%emt 0:04:40]} 41. Qf4 {
[%emt 0:35:19]} Nd3 {[%emt 0:30:55]} 42. Qe3 {[%emt 0:00:00]} Nc5 {[%emt 0:00:
00]} 43. Rh4 {[%emt 0:00:00]} Qd6+ {[%emt 0:00:00]} 44. Kh1 {[%emt 0:00:00]} h5
{[%emt 0:00:00]} 45. Rf1 {[%emt 0:00:00]} Qd3 {[%emt 0:00:00]} 46. Qe5+ {
[%emt 0:00:00]} Kg8 {[%emt 0:00:00]} 47. Qf6 {[%emt 0:00:00]} Qd5 {[%emt 0:00:
00]} 48. Rhf4 {[%emt 0:00:00]} Ne4 {[%emt 0:00:00]} 49. Rxe4 {[%emt 0:00:00]}
Qxe4 {[%emt 0:00:00]} 50. Qxf7+ {[%emt 0:00:00]} Kh8 {[%emt 0:00:00]} 51. Qf6+
{[%emt 0:00:00]} Kh7 {[%emt 0:00:00]} 52. Bc6 {[%emt 0:00:00]} Qb4 {[%emt 0:00:
00]} 53. Qf7+ {[%emt 0:00:00]} Kh6 {[%emt 0:00:00]} 54. Qc4 {[%emt 0:03:09]}
Qxb3 {[%emt 0:01:09]} 55. Qf4+ {[%emt 0:00:08]} Kh7 {[%emt 0:01:46]} 56. Qc7+ {
[%emt 0:00:15]} Kg8 {[%emt 0:00:34]} 57. Bf3 {[%emt 0:02:43]} Qb6 {[%emt 0:00:
00]} 58. Qg3 {[%emt 0:00:10]} Kh7 {[%emt 0:00:41]} 59. Re1 {[%emt 0:00:11]} Re8
{[%emt 0:01:49]} 60. Kh2 {[%emt 0:00:48]} Rxe1 {[%emt 0:00:21]} 61. Qxe1 {
[%emt 0:00:10]} Qd6+ {[%emt 0:00:29]} 62. Qg3 {[%emt 0:00:34]} Qd8 {[%emt 0:00:
00]} 63. Be4 {[%emt 0:00:15]} Rb6 {[%emt 0:00:21]} 64. Qd3 {[%emt 0:00:42]}
Qc7+ {[%emt 0:01:12]} 65. Qg3 {[%emt 0:00:25]} Qe7 {[%emt 0:00:28]} 66. Bf3 {
[%emt 0:00:57]} h4 {[%emt 0:00:41]} 67. Qf4 {[%emt 0:01:27]} Rb4 {[%emt 0:00:
00]} 68. Qc1 {[%emt 0:01:57]} Qe5+ {[%emt 0:00:31]} 69. Kg1 {[%emt 0:00:26]}
Ra4 {[%emt 0:00:46]} 0-1

[Event "44th Chess Olympiad Open 2022"]
[Site "Chennai"]
[Date "2022.07.31"]
[Round "3.76"]
[White "Bongo Ngombele, Tary"]
[Black "Alhejab, Meshal"]
[Result "0-1"]
[WhiteElo "1688"]
[BlackElo "1732"]
[Annotator "NA"]
[PlyCount "76"]
[EventDate "2022.??.??"]
[TimeControl "60"]

1. e4 {[%emt 0:00:02]} c5 {[%emt 0:00:21]} 2. Nf3 {[%emt 0:00:15]} Nc6 {
[%emt 0:00:05]} 3. d4 {[%emt 0:00:08]} cxd4 {[%emt 0:00:04]} 4. Nxd4 {[%emt 0:
00:00]} Nf6 {[%emt 0:00:01]} 5. Nc3 {[%emt 0:00:19]} e5 {[%emt 0:00:04]} 6. Nf3
{[%emt 0:00:26]} Bb4 {[%emt 0:00:14]} 7. Bd2 {[%emt 0:03:16]} Bxc3 {[%emt 0:00:
00]} 8. Bxc3 {[%emt 0:00:29]} Nxe4 {[%emt 0:00:33]} 9. Nxe5 {[%emt 0:05:36]}
Nxc3 {[%emt 0:03:17]} 10. Nxc6 {[%emt 0:00:22]} bxc6 {[%emt 0:30:33]} 11. bxc3
{[%emt 0:00:30]} Qf6 {[%emt 0:04:19]} 12. Qd4 {[%emt 0:00:36]} Qe6+ {[%emt 0:
00:00]} 13. Be2 {[%emt 0:00:23]} Ba6 {[%emt 0:03:48]} 14. c4 {[%emt 0:09:49]}
O-O {[%emt 0:00:39]} 15. Kd2 {[%emt 0:06:37]} d5 {[%emt 0:04:40]} 16. Qe3 {
[%emt 0:02:07]} Qd6 {[%emt 0:02:59]} 17. c5 {[%emt 0:01:25]} Qc7 {[%emt 0:00:
00]} 18. Bxa6 {[%emt 0:00:51]} Qa5+ {[%emt 0:00:05]} 19. Qc3 {[%emt 0:00:16]}
Qxa6 {[%emt 0:00:22]} 20. Rhe1 {[%emt 0:02:34]} d4 {[%emt 0:01:11]} 21. Qd3 {
[%emt 0:02:41]} Qa5+ {[%emt 0:02:42]} 22. c3 {[%emt 0:03:19]} Rab8 {[%emt 0:00:
00]} 23. Kc2 {[%emt 0:02:40]} Qa4+ {[%emt 0:01:32]} 24. Kc1 {[%emt 0:02:57]}
Qa3+ {[%emt 0:01:37]} 25. Kd1 {[%emt 0:07:12]} Qb2 {[%emt 0:02:41]} 26. Rc1 {
[%emt 0:00:28]} dxc3 {[%emt 0:00:24]} 27. Re7 {[%emt 0:05:37]} Qxf2 {[%emt 0:
00:00]} 28. Rxc3 {[%emt 0:01:42]} Rfd8 {[%emt 0:00:37]} 29. Rd7 {[%emt 0:02:42]
} Rxd7 {[%emt 0:00:42]} 30. Qxd7 {[%emt 0:00:17]} Rb1+ {[%emt 0:00:10]} 31. Rc1
{[%emt 0:00:18]} Qf1+ {[%emt 0:00:13]} 32. Kd2 {[%emt 0:00:22]} Qxc1+ {[%emt 0:
00:00]} 33. Ke2 {[%emt 0:01:19]} Qf1+ {[%emt 0:00:38]} 34. Ke3 {[%emt 0:00:27]}
Re1+ {[%emt 0:00:22]} 35. Kd2 {[%emt 0:00:29]} Qe2+ {[%emt 0:01:20]} 36. Kc3 {
[%emt 0:00:18]} Rc1+ {[%emt 0:00:04]} 37. Kb3 {[%emt 0:01:46]} Qb5+ {[%emt 0:
00:00]} 38. Ka3 {[%emt 0:00:23]} Rc3# {[%emt 0:00:05]} 0-1

[Event "44th Chess Olympiad Open 2022"]
[Site "Chennai"]
[Date "2022.07.31"]
[Round "3.77"]
[White "Chinasamy, Devarajen"]
[Black "Nevska, Gerda"]
[Result "1-0"]
[WhiteElo "1970"]
[BlackElo "1840"]
[Annotator "NA"]
[PlyCount "61"]
[EventDate "2022.??.??"]
[TimeControl "60"]

1. d4 {[%emt 0:00:05]} g6 {[%emt 0:00:36]} 2. Nc3 {[%emt 0:00:27]} Bg7 {
[%emt 0:00:22]} 3. e4 {[%emt 0:00:36]} c6 {[%emt 0:01:17]} 4. Be3 {[%emt 0:00:
00]} d5 {[%emt 0:00:48]} 5. f3 {[%emt 0:03:40]} Nd7 {[%emt 0:13:01]} 6. exd5 {
[%emt 0:07:33]} Nb6 {[%emt 0:04:02]} 7. dxc6 {[%emt 0:01:38]} bxc6 {[%emt 0:00:
00]} 8. Nge2 {[%emt 0:03:41]} Ba6 {[%emt 0:16:50]} 9. b3 {[%emt 0:07:28]} Nf6 {
[%emt 0:04:44]} 10. Qd2 {[%emt 0:01:29]} h5 {[%emt 0:17:29]} 11. Ne4 {[%emt 0:
00:00]} Nbd5 {[%emt 0:06:35]} 12. Nxf6+ {[%emt 0:06:58]} Bxf6 {[%emt 0:01:23]}
13. Bf2 {[%emt 0:00:37]} Bg7 {[%emt 0:05:13]} 14. c4 {[%emt 0:02:07]} Bh6 {
[%emt 0:00:32]} 15. f4 {[%emt 0:03:59]} Nf6 {[%emt 0:00:45]} 16. Qc2 {[%emt 0:
00:00]} Bc8 {[%emt 0:00:23]} 17. Be3 {[%emt 0:09:55]} Bf5 {[%emt 0:00:42]} 18.
Qb2 {[%emt 0:02:35]} h4 {[%emt 0:02:01]} 19. Ng1 {[%emt 0:05:18]} Qc7 {[%emt 0:
00:00]} 20. Qc1 {[%emt 0:01:47]} Rd8 {[%emt 0:02:55]} 21. Nf3 {[%emt 0:03:11]}
Bg7 {[%emt 0:06:43]} 22. Be2 {[%emt 0:02:44]} Ne4 {[%emt 0:03:12]} 23. O-O {
[%emt 0:03:04]} h3 {[%emt 0:06:32]} 24. g3 {[%emt 0:00:41]} Bg4 {[%emt 0:00:39]
} 25. Qc2 {[%emt 0:03:36]} f5 {[%emt 0:01:34]} 26. Rad1 {[%emt 0:01:19]} Bf6 {
[%emt 0:01:47]} 27. Rd3 {[%emt 0:06:02]} g5 {[%emt 0:00:21]} 28. Rfd1 {[%emt 0:
00:00]} Rg8 {[%emt 0:00:24]} 29. Ne5 {[%emt 0:03:05]} Bxe2 {[%emt 0:01:27]} 30.
Qxe2 {[%emt 0:00:09]} c5 {[%emt 0:00:42]} 31. Qh5+ {[%emt 0:00:29]} 1-0

[Event "44th Chess Olympiad Open 2022"]
[Site "Chennai"]
[Date "2022.07.31"]
[Round "3.77"]
[White "Brookfield, Toby"]
[Black "Naipal, Hoolan"]
[Result "1-0"]
[WhiteElo "1815"]
[BlackElo "1785"]
[Annotator "NA RC"]
[PlyCount "31"]
[EventDate "2022.??.??"]
[TimeControl "60"]

1. e4 {[%emt 0:00:08]} e5 {[%emt 0:00:18]} 2. d4 {[%emt 0:00:10]} exd4 {
[%emt 0:01:17]} 3. Qxd4 {[%emt 0:00:10]} Nc6 {[%emt 0:00:28]} 4. Qe3 {[%emt 0:
00:00]} Nf6 {[%emt 0:01:35]} 5. Nc3 {[%emt 0:00:08]} Bb4 {[%emt 0:00:56]} 6.
Bd2 {[%emt 0:00:09]} O-O {[%emt 0:06:01]} 7. O-O-O {[%emt 0:00:07]} Re8 {
[%emt 0:05:38]} 8. Qg3 {[%emt 0:00:08]} Qe7 {[%emt 0:19:18]} 9. f3 {[%emt 0:00:
00]} d6 {[%emt 0:01:03]} 10. h4 {[%emt 0:01:29]} Be6 {[%emt 0:07:22]} 11. Nge2
{[%emt 0:04:39]} Rad8 {[%emt 0:05:46]} 12. h5 {[%emt 0:03:17]} Kh8 {[%emt 0:00:
00]} 13. h6 {[%emt 0:01:09]} g6 {[%emt 0:00:08]} 14. Bg5 {[%emt 0:02:45]} Ne5 {
[%emt 0:06:06]} 15. Qh4 {[%emt 0:03:45]} Ned7 {[%emt 0:00:10]} 16. e5 {[%emt 0:
00:00]} 1-0